[Event "*** SCC Grand Prix: Titled Tuesday Blitz"]
[Site "Chess.com"]
[Date "2020.06.02"]
[Round "4"]
[White "FightingChess"]
[Black "tsaruk_maks"]
[Result "1-0"]
[WhiteElo "2371"]
[BlackElo "2606"]
[TimeControl "180+1"]
[EndTime "10:40:01 PDT"]
[Termination "FightingChess won by checkmate"]

1. e4 {[%clk 0:03:00.9]} 1... e6 {[%clk 0:03:00]} 2. d4 {[%clk 0:03:01]} 2... b6
{[%clk 0:03:00.8]} 3. Bd3 {[%clk 0:02:58.5]} 3... Bb7 {[%clk 0:03:01.7]} 4. c3
{[%clk 0:02:57.8]} 4... Nf6 {[%clk 0:02:58.8]} 5. Qe2 {[%clk 0:02:57.7]} 5... d5
{[%clk 0:02:59.4]} 6. e5 {[%clk 0:02:53.8]} 6... Nfd7 {[%clk 0:02:58.4]} 7. f4
{[%clk 0:02:54.2]} 7... c5 {[%clk 0:02:58.7]} 8. Nf3 {[%clk 0:02:54.5]} 8... Qc8
{[%clk 0:02:58.5]} 9. a4 {[%clk 0:02:28.9]} 9... Ba6 {[%clk 0:02:56.1]} 10. Bb5
{[%clk 0:02:28.5]} 10... Bxb5 {[%clk 0:02:52.5]} 11. axb5 {[%clk 0:02:28.2]}
11... cxd4 {[%clk 0:02:53.4]} 12. Nxd4 {[%clk 0:02:28.2]} 12... a5 {[%clk
0:02:53.2]} 13. Be3 {[%clk 0:02:16.5]} 13... g6 {[%clk 0:02:51.6]} 14. O-O
{[%clk 0:02:12.3]} 14... Be7 {[%clk 0:02:40.4]} 15. b4 {[%clk 0:02:11.8]} 15...
a4 {[%clk 0:02:29.1]} 16. Qc2 {[%clk 0:02:04.2]} 16... O-O {[%clk 0:02:28.1]}
17. Rxa4 {[%clk 0:02:03.1]} 17... Rxa4 {[%clk 0:02:28.2]} 18. Qxa4 {[%clk
0:02:04]} 18... Qc4 {[%clk 0:02:27.7]} 19. Qb3 {[%clk 0:01:44.5]} 19... Qd3
{[%clk 0:02:18.6]} 20. Bf2 {[%clk 0:01:44.9]} 20... Rc8 {[%clk 0:02:15.2]} 21.
Rd1 {[%clk 0:01:42.2]} 21... Qe4 {[%clk 0:02:03.2]} 22. g3 {[%clk 0:01:42.2]}
22... g5 {[%clk 0:02:03.7]} 23. Nd2 {[%clk 0:01:42.1]} 23... Qg6 {[%clk
0:01:58.9]} 24. Be3 {[%clk 0:00:19.7]} 24... Qd3 {[%clk 0:01:50.3]} 25. Nf1
{[%clk 0:00:11.4]} 25... Rxc3 {[%clk 0:01:46.4]} 26. Rxd3 {[%clk 0:00:09.6]}
26... Rxb3 {[%clk 0:01:47.3]} 27. Rxb3 {[%clk 0:00:09]} 27... gxf4 {[%clk
0:01:48.2]} 28. Bxf4 {[%clk 0:00:08.7]} 28... Kf8 {[%clk 0:01:46.7]} 29. Ne3
{[%clk 0:00:08.3]} 29... Ke8 {[%clk 0:01:47.2]} 30. Rc3 {[%clk 0:00:08.3]} 30...
Kd8 {[%clk 0:01:47.6]} 31. Rb3 {[%clk 0:00:08.3]} 31... Kc8 {[%clk 0:01:47.8]}
32. Kf2 {[%clk 0:00:08.4]} 32... Kb7 {[%clk 0:01:48.2]} 33. Kf3 {[%clk
0:00:08.7]} 33... Nf8 {[%clk 0:01:48.9]} 34. Ng4 {[%clk 0:00:08.4]} 34... Nbd7
{[%clk 0:01:48.9]} 35. Nf6 {[%clk 0:00:08.1]} 35... Nxf6 {[%clk 0:01:48.2]} 36.
exf6 {[%clk 0:00:09]} 36... Bxf6 {[%clk 0:01:49.1]} 37. Ne2 {[%clk 0:00:08.1]}
37... Nd7 {[%clk 0:01:49.5]} 38. Rb1 {[%clk 0:00:07.8]} 38... e5 {[%clk
0:01:49.7]} 39. Bd2 {[%clk 0:00:07.7]} 39... Be7 {[%clk 0:01:48.9]} 40. g4
{[%clk 0:00:06.7]} 40... e4+ {[%clk 0:01:48.2]} 41. Kf4 {[%clk 0:00:05.1]} 41...
h6 {[%clk 0:01:47.9]} 42. Kf5 {[%clk 0:00:04.4]} 42... Nf8 {[%clk 0:01:43.8]}
43. Be3 {[%clk 0:00:04.8]} 43... Ng6 {[%clk 0:01:43.2]} 44. Nd4 {[%clk
0:00:03.7]} 44... Nh4+ {[%clk 0:01:42]} 45. Ke5 {[%clk 0:00:04]} 45... Ng2
{[%clk 0:01:40.4]} 46. Bf2 {[%clk 0:00:02.9]} 46... e3 {[%clk 0:01:40.1]} 47.
Bg1 {[%clk 0:00:03.3]} 47... e2 {[%clk 0:01:39.8]} 48. Nxe2 {[%clk 0:00:03.1]}
48... f6+ {[%clk 0:01:38.7]} 49. Kxd5 {[%clk 0:00:03.6]} 49... Nh4 {[%clk
0:01:39.2]} 50. Nd4 {[%clk 0:00:04.1]} 50... Ng6 {[%clk 0:01:38.6]} 51. Bf2
{[%clk 0:00:04.4]} 51... Nf4+ {[%clk 0:01:38.9]} 52. Ke4 {[%clk 0:00:05]} 52...
Bd6 {[%clk 0:01:39.4]} 53. Rd1 {[%clk 0:00:04.9]} 53... Nh3 {[%clk 0:01:36.5]}
54. Kf3 {[%clk 0:00:04.5]} 54... Bxb4 {[%clk 0:01:35.9]} 55. Kg3 {[%clk
0:00:04]} 55... Ng5 {[%clk 0:01:35.2]} 56. Be3 {[%clk 0:00:04.5]} 56... Ne4+
{[%clk 0:01:35.5]} 57. Kf4 {[%clk 0:00:05.1]} 57... Nc3 {[%clk 0:01:34.8]} 58.
Rf1 {[%clk 0:00:04.9]} 58... Nd5+ {[%clk 0:01:33.3]} 59. Ke4 {[%clk 0:00:05.5]}
59... Nc3+ {[%clk 0:01:33.5]} 60. Kd3 {[%clk 0:00:05.9]} 60... Nd5 {[%clk
0:01:33.5]} 61. Rf5 {[%clk 0:00:05.5]} 61... Ne7 {[%clk 0:01:31.9]} 62. Rxf6
{[%clk 0:00:05.2]} 62... Bc5 {[%clk 0:01:32.8]} 63. Rf7 {[%clk 0:00:05.5]} 63...
Kc8 {[%clk 0:01:33.1]} 64. Nf5 {[%clk 0:00:05.2]} 64... Nxf5 {[%clk 0:01:31.5]}
65. gxf5 {[%clk 0:00:06.1]} 65... Bd6 {[%clk 0:01:31.2]} 66. Bxb6 {[%clk
0:00:05.9]} 66... Bxh2 {[%clk 0:01:31.6]} 67. Bc5 {[%clk 0:00:05.9]} 67... Kd8
{[%clk 0:01:31.9]} 68. Kc4 {[%clk 0:00:06.3]} 68... Ke8 {[%clk 0:01:32.4]} 69.
Re7+ {[%clk 0:00:06.8]} 69... Kd8 {[%clk 0:01:31.9]} 70. f6 {[%clk 0:00:07.3]}
70... Bg1 {[%clk 0:01:31.8]} 71. Rf7 {[%clk 0:00:05.6]} 71... Bxc5 {[%clk
0:01:29.5]} 72. Kxc5 {[%clk 0:00:06.1]} 72... h5 {[%clk 0:01:30.4]} 73. Rh7
{[%clk 0:00:05.8]} 73... h4 {[%clk 0:01:31.3]} 74. Rxh4 {[%clk 0:00:04.6]} 74...
Ke8 {[%clk 0:01:32.2]} 75. Rh7 {[%clk 0:00:04.5]} 75... Kf8 {[%clk 0:01:32.7]}
76. Kd6 {[%clk 0:00:04.2]} 76... Kg8 {[%clk 0:01:33.6]} 77. Rg7+ {[%clk
0:00:04.5]} 77... Kf8 {[%clk 0:01:34.2]} 78. Re7 {[%clk 0:00:04.8]} 78... Kg8
{[%clk 0:01:34.2]} 79. Ke6 {[%clk 0:00:05.5]} 79... Kf8 {[%clk 0:01:34.7]} 80.
Kf5 {[%clk 0:00:06.2]} 80... Kg8 {[%clk 0:01:35.1]} 81. Kg6 {[%clk 0:00:06.9]}
81... Kf8 {[%clk 0:01:35.6]} 82. b6 {[%clk 0:00:07.7]} 82... Kg8 {[%clk
0:01:35.6]} 83. Re8# {[%clk 0:00:08.4]} 1-0

[Event "*** SCC Grand Prix: Titled Tuesday Blitz"]
[Site "Chess.com"]
[Date "2020.06.02"]
[Round "4"]
[White "temus_galaktionov"]
[Black "OparinGrigoriy"]
[Result "0-1"]
[WhiteElo "2724"]
[BlackElo "2915"]
[TimeControl "180+1"]
[EndTime "10:40:02 PDT"]
[Termination "OparinGrigoriy won by resignation"]

1. d4 {[%clk 0:03:00.9]} 1... Nf6 {[%clk 0:02:59.3]} 2. Nf3 {[%clk 0:03:01.3]}
2... e6 {[%clk 0:02:59.9]} 3. c4 {[%clk 0:03:01.8]} 3... Bb4+ {[%clk 0:02:59.7]}
4. Nbd2 {[%clk 0:03:02.3]} 4... O-O {[%clk 0:02:59.7]} 5. a3 {[%clk 0:03:02]}
5... Be7 {[%clk 0:03:00]} 6. e3 {[%clk 0:03:01.7]} 6... d5 {[%clk 0:02:56.3]} 7.
b4 {[%clk 0:03:01.2]} 7... a5 {[%clk 0:02:55.5]} 8. b5 {[%clk 0:03:00.6]} 8...
c5 {[%clk 0:02:54.3]} 9. bxc6 {[%clk 0:02:58.6]} 9... bxc6 {[%clk 0:02:50.9]}
10. Bb2 {[%clk 0:02:50.6]} 10... Ba6 {[%clk 0:02:48.5]} 11. Be2 {[%clk
0:02:37.2]} 11... Nbd7 {[%clk 0:02:46.9]} 12. O-O {[%clk 0:02:36.8]} 12... c5
{[%clk 0:02:46.6]} 13. cxd5 {[%clk 0:02:35.2]} 13... Nxd5 {[%clk 0:02:44.9]} 14.
Bxa6 {[%clk 0:02:33.4]} 14... Rxa6 {[%clk 0:02:45.8]} 15. Nc4 {[%clk 0:02:33.9]}
15... cxd4 {[%clk 0:02:20.7]} 16. Nxd4 {[%clk 0:02:28.6]} 16... Nc5 {[%clk
0:02:15.2]} 17. Qe2 {[%clk 0:02:13.3]} 17... Qa8 {[%clk 0:02:14.7]} 18. a4
{[%clk 0:01:54.9]} 18... Rb8 {[%clk 0:02:08.8]} 19. Rfd1 {[%clk 0:01:41]} 19...
Bf8 {[%clk 0:02:06.7]} 20. h3 {[%clk 0:01:37.2]} 20... Qb7 {[%clk 0:01:45.7]}
21. e4 {[%clk 0:01:20.6]} 21... Nf4 {[%clk 0:01:39.9]} 22. Qg4 {[%clk
0:01:13.4]} 22... Nfd3 {[%clk 0:00:26.8]} 23. Ba3 {[%clk 0:01:07.3]} 23... Rd8
{[%clk 0:00:18.7]} 24. Bxc5 {[%clk 0:00:53.3]} 24... Nxc5 {[%clk 0:00:19.6]} 25.
e5 {[%clk 0:00:52.8]} 25... Raa8 {[%clk 0:00:18.3]} 26. Nb5 {[%clk 0:00:45.5]}
26... Rxd1+ {[%clk 0:00:15.7]} 27. Rxd1 {[%clk 0:00:46.4]} 27... Nxa4 {[%clk
0:00:11.7]} 28. Ncd6 {[%clk 0:00:40.2]} 28... Bxd6 {[%clk 0:00:11.7]} 29. Nxd6
{[%clk 0:00:40.8]} 29... Qb3 {[%clk 0:00:11.8]} 30. Kh2 {[%clk 0:00:24.5]} 30...
Nb6 {[%clk 0:00:08.8]} 31. Qe2 {[%clk 0:00:14.9]} 31... Nd5 {[%clk 0:00:07.3]}
32. Rd3 {[%clk 0:00:14.5]} 32... Qb6 {[%clk 0:00:05.2]} 33. Rg3 {[%clk
0:00:13.7]} 33... g6 {[%clk 0:00:04.9]} 34. h4 {[%clk 0:00:13.1]} 34... Qd4
{[%clk 0:00:05.2]} 35. h5 {[%clk 0:00:11.9]} 35... Qh4+ {[%clk 0:00:05.5]} 36.
Rh3 {[%clk 0:00:11.3]} 36... Qf4+ {[%clk 0:00:05.7]} 37. Rg3 {[%clk 0:00:11.5]}
37... a4 {[%clk 0:00:05.7]} 38. Kh3 {[%clk 0:00:09.4]} 38... a3 {[%clk
0:00:05.1]} 39. hxg6 {[%clk 0:00:09.5]} 39... hxg6 {[%clk 0:00:05]} 40. Rf3
{[%clk 0:00:09.8]} 40... Qh6+ {[%clk 0:00:05.1]} 41. Kg3 {[%clk 0:00:10.4]}
41... a2 {[%clk 0:00:05.2]} 42. Nxf7 {[%clk 0:00:10.1]} 42... Qg7 {[%clk
0:00:04.2]} 43. Ng5 {[%clk 0:00:05.7]} 43... a1=Q {[%clk 0:00:04.6]} 44. Nxe6
{[%clk 0:00:05.7]} 44... Qgxe5+ {[%clk 0:00:04.8]} 0-1

[Event "*** SCC Grand Prix: Titled Tuesday Blitz"]
[Site "Chess.com"]
[Date "2020.06.02"]
[Round "4"]
[White "Norival"]
[Black "Piotrek1979"]
[Result "1-0"]
[WhiteElo "2632"]
[BlackElo "2424"]
[TimeControl "180+1"]
[EndTime "10:40:02 PDT"]
[Termination "Norival won on time"]

1. d4 {[%clk 0:03:00.9]} 1... Nf6 {[%clk 0:02:59.1]} 2. Nf3 {[%clk 0:03:01.1]}
2... d6 {[%clk 0:02:58.3]} 3. g3 {[%clk 0:02:59.5]} 3... g6 {[%clk 0:02:56]} 4.
Bg2 {[%clk 0:03:00]} 4... Bg7 {[%clk 0:02:56.9]} 5. O-O {[%clk 0:03:00.6]} 5...
O-O {[%clk 0:02:57.8]} 6. Nc3 {[%clk 0:03:00.6]} 6... Nbd7 {[%clk 0:02:58.3]} 7.
e4 {[%clk 0:03:00.6]} 7... e5 {[%clk 0:02:58.5]} 8. h3 {[%clk 0:03:00.5]} 8...
c6 {[%clk 0:02:58.8]} 9. Re1 {[%clk 0:03:00]} 9... a5 {[%clk 0:02:57.5]} 10. a4
{[%clk 0:02:53.4]} 10... Re8 {[%clk 0:02:54]} 11. b3 {[%clk 0:02:52.6]} 11...
Qb6 {[%clk 0:02:51.2]} 12. Be3 {[%clk 0:02:46.8]} 12... exd4 {[%clk 0:02:51.2]}
13. Bxd4 {[%clk 0:02:45.4]} 13... Qc7 {[%clk 0:02:40.4]} 14. Qd2 {[%clk
0:02:38.4]} 14... Ne5 {[%clk 0:02:39.3]} 15. Nh2 {[%clk 0:02:32.8]} 15... Ned7
{[%clk 0:02:06.4]} 16. Rad1 {[%clk 0:02:31.6]} 16... Bf8 {[%clk 0:01:24.8]} 17.
Nf1 {[%clk 0:02:02.2]} 17... Ne5 {[%clk 0:01:20.5]} 18. f4 {[%clk 0:01:58.3]}
18... Ned7 {[%clk 0:01:20.1]} 19. g4 {[%clk 0:01:55.7]} 19... h5 {[%clk
0:01:08.8]} 20. g5 {[%clk 0:01:54.5]} 20... Nh7 {[%clk 0:01:08.9]} 21. Qf2
{[%clk 0:01:51.1]} 21... Nc5 {[%clk 0:01:08.3]} 22. Bxc5 {[%clk 0:01:47]} 22...
dxc5 {[%clk 0:01:07.9]} 23. e5 {[%clk 0:01:47]} 23... Bf5 {[%clk 0:01:06.3]} 24.
Ne3 {[%clk 0:01:44.6]} 24... Be6 {[%clk 0:01:02]} 25. Ne4 {[%clk 0:01:42.4]}
25... b5 {[%clk 0:01:00]} 26. c4 {[%clk 0:01:40.2]} 26... bxa4 {[%clk 0:00:59]}
27. bxa4 {[%clk 0:01:39.4]} 27... Rab8 {[%clk 0:00:59.6]} 28. Nd6 {[%clk
0:01:34.1]} 28... Red8 {[%clk 0:00:58.4]} 29. f5 {[%clk 0:01:25.2]} 29... gxf5
{[%clk 0:00:57.1]} 30. Nexf5 {[%clk 0:01:25]} 30... Rb4 {[%clk 0:00:47.1]} 31.
Qg3 {[%clk 0:01:18.1]} 31... Kh8 {[%clk 0:00:35.6]} 32. g6 {[%clk 0:01:12.1]}
32... fxg6 {[%clk 0:00:35.4]} 33. Nh4 {[%clk 0:01:09.4]} 33... g5 {[%clk
0:00:30.3]} 34. Ng6+ {[%clk 0:01:07.3]} 34... Kg7 {[%clk 0:00:29.9]} 35. Nxf8
{[%clk 0:01:03.1]} 35... Rxf8 {[%clk 0:00:30.8]} 36. Rf1 {[%clk 0:00:57]} 36...
h4 {[%clk 0:00:24.1]} 37. Qe3 {[%clk 0:00:54.9]} 37... Qe7 {[%clk 0:00:20.4]}
38. Bxc6 {[%clk 0:00:52.8]} 38... Rbb8 {[%clk 0:00:10.2]} 39. Bd5 {[%clk
0:00:41.8]} 39... g4 {[%clk 0:00:08.8]} 40. hxg4 {[%clk 0:00:40]} 40... Bxg4
{[%clk 0:00:08.5]} 41. Rde1 {[%clk 0:00:30.2]} 41... Qg5 {[%clk 0:00:08.3]} 42.
Qxg5+ {[%clk 0:00:26]} 42... Nxg5 {[%clk 0:00:07.7]} 43. Rxf8 {[%clk 0:00:24.3]}
43... Rxf8 {[%clk 0:00:08.6]} 44. e6 {[%clk 0:00:20.6]} 44... Nh3+ {[%clk
0:00:02.1]} 45. Kg2 {[%clk 0:00:20.8]} 45... Rf2+ {[%clk 0:00:01.3]} 46. Kh1
{[%clk 0:00:21]} 1-0

[Event "*** SCC Grand Prix: Titled Tuesday Blitz"]
[Site "Chess.com"]
[Date "2020.06.02"]
[Round "4"]
[White "Enriquack"]
[Black "Matveev_Vladimir"]
[Result "1-0"]
[WhiteElo "2359"]
[BlackElo "2570"]
[TimeControl "180+1"]
[EndTime "10:40:02 PDT"]
[Termination "Enriquack won by resignation"]

1. e4 {[%clk 0:03:00.9]} 1... c5 {[%clk 0:02:59.7]} 2. Nf3 {[%clk 0:03:00.1]}
2... d6 {[%clk 0:03:00.1]} 3. d4 {[%clk 0:02:59.1]} 3... cxd4 {[%clk 0:03:01]}
4. Nxd4 {[%clk 0:03:00]} 4... Nf6 {[%clk 0:03:01.4]} 5. Nc3 {[%clk 0:03:00.5]}
5... a6 {[%clk 0:03:00.9]} 6. Bg5 {[%clk 0:03:00.3]} 6... e6 {[%clk 0:02:58.5]}
7. f4 {[%clk 0:03:00]} 7... Qc7 {[%clk 0:02:57.6]} 8. Qf3 {[%clk 0:02:59.9]}
8... Be7 {[%clk 0:02:56.2]} 9. O-O-O {[%clk 0:03:00]} 9... h6 {[%clk 0:02:52.4]}
10. Bh4 {[%clk 0:02:55.6]} 10... Nbd7 {[%clk 0:02:49.1]} 11. Be2 {[%clk
0:02:53.7]} 11... g5 {[%clk 0:02:20.8]} 12. fxg5 {[%clk 0:02:47.9]} 12... Ne5
{[%clk 0:02:20.1]} 13. Qe3 {[%clk 0:02:16.3]} 13... hxg5 {[%clk 0:01:39.4]} 14.
Bxg5 {[%clk 0:02:07.4]} 14... Nfg4 {[%clk 0:01:09.2]} 15. Qf4 {[%clk 0:02:06.1]}
15... Bxg5 {[%clk 0:01:06.7]} 16. Qxg5 {[%clk 0:02:06.3]} 16... Nf2 {[%clk
0:01:07.2]} 17. Nf5 {[%clk 0:01:56.2]} 17... Nxd1 {[%clk 0:00:59.7]} 18. Rxd1
{[%clk 0:01:48.3]} 18... exf5 {[%clk 0:00:51.1]} 19. Nd5 {[%clk 0:01:47.8]}
19... Qd8 {[%clk 0:00:48.7]} 20. Qg7 {[%clk 0:01:23.4]} 20... Qh4 {[%clk
0:00:25.8]} 21. Nc7+ {[%clk 0:00:37.5]} 21... Ke7 {[%clk 0:00:24.9]} 22. Nd5+
{[%clk 0:00:26]} 22... Kd8 {[%clk 0:00:20.8]} 23. Kb1 {[%clk 0:00:20.4]} 23...
Qh6 {[%clk 0:00:19.1]} 24. Qg3 {[%clk 0:00:19.8]} 24... f4 {[%clk 0:00:17.7]}
25. Qb3 {[%clk 0:00:19.7]} 25... b5 {[%clk 0:00:16.1]} 26. Qc3 {[%clk
0:00:19.1]} 26... Ra7 {[%clk 0:00:15.9]} 27. Nb6 {[%clk 0:00:16]} 27... Rc7
{[%clk 0:00:15.1]} 28. Qxe5 {[%clk 0:00:16.4]} 28... Rc6 {[%clk 0:00:11.6]} 29.
Qd4 {[%clk 0:00:07.8]} 29... Re8 {[%clk 0:00:08.9]} 30. Nd5 {[%clk 0:00:08]}
30... Be6 {[%clk 0:00:08.1]} 31. Qa7 {[%clk 0:00:08.2]} 31... Bxd5 {[%clk
0:00:08.3]} 32. Qb8+ {[%clk 0:00:05.2]} 32... Rc8 {[%clk 0:00:08.4]} 33. Qb6+
{[%clk 0:00:05.6]} 33... Rc7 {[%clk 0:00:08.6]} 34. Rxd5 {[%clk 0:00:06.4]}
34... Kd7 {[%clk 0:00:08.9]} 35. Bg4+ {[%clk 0:00:06.2]} 35... Ke7 {[%clk
0:00:06]} 36. Qxc7+ {[%clk 0:00:06.4]} 36... Kf8 {[%clk 0:00:06.9]} 37. Qxd6+
{[%clk 0:00:06.9]} 37... Qxd6 {[%clk 0:00:07.1]} 38. Rxd6 {[%clk 0:00:07.8]}
38... Rxe4 {[%clk 0:00:08]} 39. b3 {[%clk 0:00:08.5]} 39... f3 {[%clk
0:00:07.6]} 40. Bxf3 {[%clk 0:00:08.9]} 40... Re1+ {[%clk 0:00:08.5]} 41. Kb2
{[%clk 0:00:09]} 41... Rh1 {[%clk 0:00:09.4]} 42. Rxa6 {[%clk 0:00:09.6]} 42...
Rxh2 {[%clk 0:00:10.3]} 43. Rb6 {[%clk 0:00:10.3]} 43... Kg7 {[%clk 0:00:11]}
44. Rxb5 {[%clk 0:00:10.8]} 44... Rh1 {[%clk 0:00:11.4]} 45. a4 {[%clk
0:00:11.4]} 45... Re1 {[%clk 0:00:12.3]} 46. a5 {[%clk 0:00:11.9]} 46... Re7
{[%clk 0:00:13.1]} 47. a6 {[%clk 0:00:12.2]} 47... Ra7 {[%clk 0:00:14]} 48. Ra5
{[%clk 0:00:12.9]} 48... f5 {[%clk 0:00:13.7]} 49. b4 {[%clk 0:00:12.1]} 49...
f4 {[%clk 0:00:14.6]} 50. b5 {[%clk 0:00:12.7]} 50... Kf6 {[%clk 0:00:15.3]} 51.
b6 {[%clk 0:00:13.2]} 1-0

[Event "*** SCC Grand Prix: Titled Tuesday Blitz"]
[Site "Chess.com"]
[Date "2020.06.02"]
[Round "4"]
[White "peixe64"]
[Black "Alexey_Spirin"]
[Result "1/2-1/2"]
[WhiteElo "2220"]
[BlackElo "2009"]
[TimeControl "180+1"]
[EndTime "10:40:02 PDT"]
[Termination "Game drawn by repetition"]

1. d4 {[%clk 0:03:00.9]} 1... Nf6 {[%clk 0:02:59.2]} 2. c4 {[%clk 0:03:01.2]}
2... e6 {[%clk 0:02:59]} 3. Nc3 {[%clk 0:02:59.8]} 3... Bb4 {[%clk 0:02:58.1]}
4. e3 {[%clk 0:03:00.4]} 4... b6 {[%clk 0:02:57.2]} 5. Ne2 {[%clk 0:03:00.9]}
5... Bb7 {[%clk 0:02:56.3]} 6. a3 {[%clk 0:03:00.5]} 6... Be7 {[%clk 0:02:54.2]}
7. f3 {[%clk 0:03:00.4]} 7... d6 {[%clk 0:02:52.5]} 8. Ng3 {[%clk 0:02:58.6]}
8... O-O {[%clk 0:02:48.9]} 9. Be2 {[%clk 0:02:58.8]} 9... Re8 {[%clk
0:02:48.6]} 10. O-O {[%clk 0:02:58.9]} 10... Nbd7 {[%clk 0:02:48.2]} 11. e4
{[%clk 0:02:59.4]} 11... c5 {[%clk 0:02:32]} 12. d5 {[%clk 0:02:55.9]} 12...
exd5 {[%clk 0:02:31.3]} 13. cxd5 {[%clk 0:02:55.7]} 13... a6 {[%clk 0:02:27.4]}
14. Nf5 {[%clk 0:02:50.8]} 14... Bf8 {[%clk 0:02:27.1]} 15. a4 {[%clk
0:02:47.8]} 15... Qc7 {[%clk 0:02:23.5]} 16. Bg5 {[%clk 0:02:34.4]} 16... Rab8
{[%clk 0:02:08.6]} 17. Qe1 {[%clk 0:02:29]} 17... Kh8 {[%clk 0:01:58.3]} 18. Bc4
{[%clk 0:02:05.3]} 18... Ne5 {[%clk 0:01:34.5]} 19. b3 {[%clk 0:01:26.5]} 19...
Bc8 {[%clk 0:01:26.5]} 20. Bxf6 {[%clk 0:01:22.2]} 20... gxf6 {[%clk 0:01:25.4]}
21. Qh4 {[%clk 0:01:15.7]} 21... Bg7 {[%clk 0:01:25.2]} 22. Nxg7 {[%clk
0:01:11.6]} 22... Kxg7 {[%clk 0:01:25]} 23. Ne2 {[%clk 0:01:10.3]} 23... Ng6
{[%clk 0:01:17.3]} 24. Qg3 {[%clk 0:01:08.4]} 24... b5 {[%clk 0:01:10.9]} 25.
axb5 {[%clk 0:01:04.3]} 25... axb5 {[%clk 0:01:10.3]} 26. Bd3 {[%clk 0:01:04.9]}
26... c4 {[%clk 0:01:07.6]} 27. bxc4 {[%clk 0:01:05]} 27... bxc4 {[%clk
0:01:07.6]} 28. Bc2 {[%clk 0:01:04.6]} 28... Qe7 {[%clk 0:01:05.8]} 29. Nf4
{[%clk 0:01:03.5]} 29... Qe5 {[%clk 0:01:03.5]} 30. Nxg6 {[%clk 0:01:02.7]}
30... hxg6 {[%clk 0:01:02.4]} 31. Ra7 {[%clk 0:00:54.6]} 31... Rb2 {[%clk
0:00:55.5]} 32. Qf2 {[%clk 0:00:51.8]} 32... Rh8 {[%clk 0:00:46.7]} 33. f4
{[%clk 0:00:47]} 33... Qh5 {[%clk 0:00:44.6]} 34. h3 {[%clk 0:00:42.3]} 34...
Bxh3 {[%clk 0:00:39.5]} 35. e5 {[%clk 0:00:33.5]} 35... dxe5 {[%clk 0:00:30.3]}
36. fxe5 {[%clk 0:00:32.3]} 36... f5 {[%clk 0:00:29.4]} 37. e6 {[%clk
0:00:30.6]} 37... Bxg2 {[%clk 0:00:25.5]} 38. Qd4+ {[%clk 0:00:25.5]} 38... Kh6
{[%clk 0:00:16.9]} 39. Qf4+ {[%clk 0:00:24.2]} 39... Qg5 {[%clk 0:00:13.1]} 40.
Qh2+ {[%clk 0:00:20.6]} 40... Qh5 {[%clk 0:00:10.1]} 41. Qf4+ {[%clk 0:00:20.1]}
41... Qg5 {[%clk 0:00:09.2]} 42. Qh2+ {[%clk 0:00:13]} 42... Qh5 {[%clk
0:00:08.7]} 43. Qf4+ {[%clk 0:00:12.8]} 1/2-1/2

[Event "*** SCC Grand Prix: Titled Tuesday Blitz"]
[Site "Chess.com"]
[Date "2020.06.02"]
[Round "4"]
[White "Dmitry_M1"]
[Black "gixfantastix"]
[Result "1-0"]
[WhiteElo "2384"]
[BlackElo "2079"]
[TimeControl "180+1"]
[EndTime "10:40:04 PDT"]
[Termination "Dmitry_M1 won on time"]

1. d4 {[%clk 0:03:00.9]} 1... Nf6 {[%clk 0:01:43.4]} 2. c4 {[%clk 0:02:58.7]}
2... e6 {[%clk 0:01:43.4]} 3. Nf3 {[%clk 0:02:57.3]} 3... d5 {[%clk 0:01:44.3]}
4. cxd5 {[%clk 0:02:56.3]} 4... exd5 {[%clk 0:01:45.2]} 5. Nc3 {[%clk
0:02:56.4]} 5... c6 {[%clk 0:01:46.1]} 6. Bg5 {[%clk 0:02:56.8]} 6... Bg4 {[%clk
0:01:44.7]} 7. Ne5 {[%clk 0:02:53.3]} 7... Bh5 {[%clk 0:01:42.3]} 8. Qc2 {[%clk
0:02:53.7]} 8... Bd6 {[%clk 0:01:38.3]} 9. e3 {[%clk 0:02:41.9]} 9... Nbd7
{[%clk 0:01:28]} 10. Nxd7 {[%clk 0:02:18.9]} 10... Qxd7 {[%clk 0:01:28.3]} 11.
Bxf6 {[%clk 0:02:18.9]} 11... gxf6 {[%clk 0:01:23.5]} 12. Bd3 {[%clk 0:02:18.5]}
12... Qg4 {[%clk 0:01:16.4]} 13. f3 {[%clk 0:02:00.8]} 13... Qh4+ {[%clk
0:01:13]} 14. Qf2 {[%clk 0:01:56.8]} 14... Qxf2+ {[%clk 0:01:00.8]} 15. Kxf2
{[%clk 0:01:57.7]} 15... Bg6 {[%clk 0:01:01.7]} 16. Rhd1 {[%clk 0:01:42.2]}
16... Rg8 {[%clk 0:00:55.6]} 17. f4 {[%clk 0:01:04.9]} 17... Bxd3 {[%clk
0:00:50.6]} 18. Rxd3 {[%clk 0:01:04.7]} 18... f5 {[%clk 0:00:47.5]} 19. Ne2
{[%clk 0:01:01.7]} 19... Ke7 {[%clk 0:00:44.4]} 20. Ng3 {[%clk 0:00:59.8]} 20...
Kf6 {[%clk 0:00:43.2]} 21. Rc1 {[%clk 0:00:58.7]} 21... Rae8 {[%clk 0:00:42.1]}
22. Rb3 {[%clk 0:00:52.4]} 22... Re7 {[%clk 0:00:40.5]} 23. a4 {[%clk
0:00:51.8]} 23... Rge8 {[%clk 0:00:39.8]} 24. Rd3 {[%clk 0:00:39.2]} 24... Kg6
{[%clk 0:00:38.7]} 25. Nf1 {[%clk 0:00:32.1]} 25... Re6 {[%clk 0:00:37.6]} 26.
h3 {[%clk 0:00:31.2]} 26... Be7 {[%clk 0:00:37.4]} 27. Nh2 {[%clk 0:00:29.6]}
27... Bh4+ {[%clk 0:00:36.7]} 28. g3 {[%clk 0:00:29.6]} 28... Bd8 {[%clk
0:00:36]} 29. Nf3 {[%clk 0:00:30.1]} 29... Bc7 {[%clk 0:00:32.9]} 30. g4 {[%clk
0:00:26.9]} 30... fxg4 {[%clk 0:00:31]} 31. hxg4 {[%clk 0:00:27.8]} 31... Kg7
{[%clk 0:00:21.8]} 32. Nh4 {[%clk 0:00:24]} 32... Kf8 {[%clk 0:00:20.5]} 33. Nf5
{[%clk 0:00:23.8]} 33... Rg6 {[%clk 0:00:19.2]} 34. Kf3 {[%clk 0:00:23.3]} 34...
Rge6 {[%clk 0:00:14.3]} 35. Rh1 {[%clk 0:00:23.2]} 35... Kg8 {[%clk 0:00:13.5]}
36. Rd2 {[%clk 0:00:22]} 36... Rg6 {[%clk 0:00:11.4]} 37. Rdh2 {[%clk
0:00:21.2]} 1-0